bitfinex/quotes_BTCUSD_20250211
["timestamp","ask_amount","ask_price","bid_price","bid_amount"]
[1739285039707,0.0002,97229.0,97224.0,1.15377385]
[1739285039912,0.0002,97229.0,97224.0,1.16377385]
[1739285040545,0.0002,97229.0,97224.0,1.18438662]
[1739285040753,0.0002,97229.0,97224.0,1.19938662]
[1739285041131,6e-07,97225.0,97224.0,1.22790935]
[1739285041343,0.0001066,97249.0,97237.0,0.290862]
[1739285041472,0.0001066,97249.0,97248.0,0.290844]
[1739285041679,0.00055039,97249.0,97248.0,0.93564765]
[1739285042087,0.00055039,97249.0,97248.0,1.09564765]
[1739285042292,0.00055039,97249.0,97248.0,1.12417038]
[1739285042487,4.6e-07,97253.0,97252.0,0.450838]
[1739285042687,0.00013346,97253.0,97252.0,0.6558453]
[1739285043096,0.00013346,97253.0,97252.0,0.38334165]
[1739285043297,0.00013346,97253.0,97252.0,0.39334165]
[1739285043759,0.00013346,97253.0,97252.0,0.41350748]
[1739285044130,0.00013346,97253.0,97252.0,0.42166748]
[1739285044339,0.00013346,97253.0,97252.0,0.27242948]
[1739285044546,0.00013346,97253.0,97252.0,0.51843631]
[1739285044769,0.00013346,97253.0,97252.0,0.34219831]
[1739285044972,0.00013346,97253.0,97252.0,0.49643631]
[1739285045173,0.00013346,97253.0,97252.0,0.35603831]
[1739285045420,0.00013346,97253.0,97252.0,0.36419831]
[1739285045626,0.00013346,97253.0,97252.0,0.51843631]
[1739285045956,4.205e-05,97253.0,97252.0,0.51843631]
[1739285047183,4.205e-05,97253.0,97252.0,0.36419831]
[1739285047398,4.205e-05,97253.0,97252.0,1.38333631]
[1739285047606,4.205e-05,97253.0,97252.0,1.37517631]
[1739285047811,4.205e-05,97253.0,97252.0,1.38517631]
[1739285049515,0.00098864,97258.0,97257.0,0.15423]
[1739285049753,0.00098864,97261.0,97258.0,0.154228]
[1739285049988,0.00098864,97261.0,97258.0,0.10353148]
[1739285050733,0.00098864,97261.0,97258.0,0.10250365]
[1739285050916,0.1543335,97259.0,97258.0,0.10250365]
[1739285051539,0.3043335,97259.0,97258.0,0.007]
[1739285052156,0.1501065,97259.0,97248.0,0.08256914]
[1739285052406,0.1543335,97259.0,97258.0,0.08256914]
[1739285052625,0.1543335,97259.0,97258.0,0.20307279]
[1739285052844,0.1543335,97259.0,97258.0,0.018]
[1739285053298,0.1543335,97259.0,97258.0,0.003]
[1739285054242,0.1543335,97259.0,97258.0,0.005]
[1739285055470,0.0001065,97259.0,97258.0,0.10750365]
[1739285055699,0.0001065,97259.0,97258.0,0.11825402]
[1739285056204,0.0001065,97259.0,97258.0,0.27248202]
[1739285056451,0.0001065,97259.0,97258.0,0.27048202]
[1739285056700,0.0001065,97259.0,97258.0,0.27748202]
[1739285057392,0.0001065,97259.0,97258.0,0.12325402]
[1739285057626,0.0001065,97259.0,97258.0,0.27448202]
[1739285057850,0.0001065,97259.0,97258.0,0.27348202]
[1739285058325,0.0001065,97259.0,97258.0,0.26748202]
[1739285058559,0.0001065,97259.0,97258.0,0.27448202]
[1739285059047,0.0001065,97259.0,97258.0,0.28148202]
[1739285059564,0.0001065,97259.0,97258.0,0.27448202]
[1739285060078,0.0001065,97259.0,97258.0,0.28948202]
[1739285061318,0.0001065,97259.0,97258.0,0.29948202]
[1739285061519,0.0001065,97259.0,97258.0,0.28948202]
[1739285062194,0.0001065,97259.0,97258.0,0.29948202]
[1739285062406,0.0001065,97259.0,97258.0,0.28248202]
[1739285062672,0.0001065,97259.0,97258.0,0.28948202]
[1739285062910,0.0001065,97259.0,97258.0,0.27448202]
[1739285063097,0.0001065,97259.0,97258.0,0.28948202]
[1739285063513,0.15,97293.0,97277.0,0.154198]
[1739285063723,0.15,97293.0,97281.0,0.10250365]
[1739285063932,0.154182,97288.0,97281.0,0.10250365]
[1739285064142,0.154179,97289.0,97281.0,0.10250365]
[1739285064696,0.00013295,97289.0,97281.0,0.10250365]
[1739285065123,0.00013295,97289.0,97281.0,0.25669565]
[1739285065322,0.00013295,97289.0,97287.0,0.08256914]
[1739285065524,0.00013295,97289.0,97288.0,0.10250365]
[1739285067092,0.00013295,97289.0,97288.0,0.11350365]
[1739285067642,0.00013295,97289.0,97288.0,0.26768465]
[1739285067910,0.00013295,97289.0,97288.0,0.11350365]
[1739285068110,0.00013295,97289.0,97288.0,0.12050365]
[1739285068337,0.01,97340.0,97288.0,0.34327001]
[1739285068541,0.154164,97299.0,97289.0,0.154179]
[1739285068748,0.154162,97300.0,97290.0,0.25667965]
[1739285068949,0.01277106,97308.0,97290.0,0.10250365]
[1739285069180,0.15,97306.0,97292.0,0.154174]
[1739285069388,0.154154,97305.0,97293.0,0.10250365]
[1739285069611,0.154158,97303.0,97293.0,0.10250365]
[1739285069828,0.154154,97305.0,97293.0,0.10250365]
[1739285070076,0.00098833,97307.0,97304.0,0.10250365]
[1739285070389,0.00098833,97307.0,97304.0,0.12101093]
[1739285070589,0.01277106,97308.0,97304.0,0.32654993]
[1739285070797,0.01277106,97308.0,97305.0,0.154154]
[1739285070977,0.01277106,97308.0,97306.0,0.10250365]
[1739285071215,0.01277106,97308.0,97307.0,0.29738944]
[1739285071627,0.01178273,97308.0,97307.0,0.29738944]
[1739285072870,0.01178273,97308.0,97307.0,0.27165465]
[1739285074149,0.01178273,97308.0,97307.0,0.11750365]
[1739285074355,0.01178273,97308.0,97307.0,0.27165465]
[1739285074556,0.01178273,97308.0,97307.0,0.27865465]
[1739285075526,0.01178273,97308.0,97307.0,0.10950365]
[1739285075725,0.01178273,97308.0,97307.0,0.26365465]
[1739285075960,0.01178273,97308.0,97307.0,0.27865465]
[1739285076157,0.01178273,97308.0,97307.0,0.37626282]
[1739285076359,0.01178273,97308.0,97307.0,0.36126282]
[1739285076807,0.01178273,97308.0,97307.0,0.37626282]
[1739285077537,0.01178273,97308.0,97307.0,0.35426282]
[1739285077758,0.01178273,97308.0,97307.0,0.37626282]
[1739285078007,0.01178273,97308.0,97307.0,0.50566282]
[1739285078218,0.01178273,97308.0,97307.0,0.49866282]
[1739285078421,0.01178273,97308.0,97307.0,0.65566282]
[1739285078625,0.01178273,97308.0,97307.0,0.65682282]
[1739285078846,0.01178273,97308.0,97307.0,0.64182282]
[1739285079051,0.01178273,97308.0,97307.0,0.64882282]
[1739285079237,0.01178273,97308.0,97307.0,0.65682282]
[1739285079648,0.01178273,97308.0,97307.0,0.64182282]
[1739285079787,0.01178273,97308.0,97307.0,0.68982282]
[1739285080307,0.01178273,97308.0,97307.0,0.71073051]
[1739285080506,0.00147284,97308.0,97307.0,0.71273051]
[1739285080708,0.00147284,97308.0,97307.0,1.27003051]
[1739285080906,0.00147284,97308.0,97307.0,1.26303051]
[1739285081118,0.00147284,97308.0,97307.0,1.27003051]
[1739285081453,0.00147284,97308.0,97307.0,1.26303051]
[1739285081895,0.00147284,97308.0,97307.0,1.27003051]
[1739285082041,0.00147284,97308.0,97307.0,1.24803051]
[1739285082238,0.00147284,97308.0,97307.0,1.25503051]
[1739285082448,0.0001066,97323.0,97322.0,0.279127]
[1739285082643,0.00023953,97323.0,97322.0,0.47319695]
[1739285082843,0.00023953,97323.0,97322.0,0.62319695]
[1739285083255,0.00023953,97323.0,97322.0,1.19849695]
[1739285083497,0.00023953,97323.0,97322.0,1.21110484]
[1739285083682,0.00023953,97323.0,97322.0,1.35098484]
[1739285084467,0.00023953,97323.0,97322.0,1.36098484]
[1739285084641,0.00023953,97323.0,97322.0,1.36798484]
[1739285084851,0.00023953,97323.0,97322.0,1.38182675]
[1739285085155,0.00023953,97323.0,97322.0,1.35582675]
[1739285085363,0.00023953,97323.0,97322.0,0.79391886]
[1739285085566,0.00023953,97323.0,97322.0,0.69235256]
[1739285085760,0.00023953,97323.0,97322.0,0.70735256]
[1739285085974,0.00023953,97323.0,97322.0,0.53651065]
[1739285086182,0.00023953,97323.0,97322.0,0.39651065]
[1739285086394,0.00023953,97323.0,97322.0,0.25738365]
[1739285086594,0.205465,97340.0,97322.0,0.25738365]
[1739285086804,0.154114,97331.0,97324.0,0.10250365]
[1739285087006,0.08,97341.0,97324.0,0.25662665]
[1739285087007,0.00219626,97330.0,97324.0,0.25662665]
[1739285087208,0.00219626,97330.0,97325.0,0.154122]
[1739285087410,0.08,97341.0,97326.0,0.10250365]
[1739285087611,0.154111,97332.0,97326.0,0.10250365]
[1739285088023,0.00219569,97331.0,97327.0,0.06170126]
[1739285088227,0.0009881,97334.0,97328.0,0.10250365]
[1739285088363,0.0021955,97330.0,97328.0,0.10250365]
[1739285088567,0.205479,97334.0,97328.0,0.10250365]
[1739285088767,0.00219607,97333.0,97328.0,0.10250365]
[1739285089027,0.359571,97338.0,97328.0,0.14167374]
[1739285089253,0.0021953,97332.0,97328.0,0.14167374]
[1739285089442,0.205474,97336.0,97328.0,0.14167374]
[1739285089614,0.02083986,97362.0,97328.0,0.14167374]
[1739285089615,0.0009881,97338.0,97328.0,0.14167374]
[1739285089820,0.205479,97334.0,97328.0,0.10250365]
[1739285090002,0.154114,97331.0,97328.0,0.11750365]
[1739285090205,0.00219569,97330.0,97328.0,0.11750365]
[1739285090383,0.154113,97331.0,97328.0,0.11750365]
[1739285090592,0.154116,97329.0,97328.0,0.10950365]
[1739285090792,0.00219664,97329.0,97328.0,0.10950365]
[1739285091002,0.0009881,97332.0,97328.0,0.11750365]
[1739285091197,0.00219378,97331.0,97329.0,0.02716297]
[1739285091421,0.1541,97339.0,97330.0,0.10250365]
[1739285091625,0.154107,97335.0,97330.0,0.10250365]
[1739285091865,0.00219645,97338.0,97330.0,0.10250365]
[1739285092063,0.00203841,97334.0,97331.0,0.03571596]
[1739285092305,0.15411,97333.0,97332.0,0.10250365]
[1739285092512,0.00203822,97333.0,97332.0,0.10250365]
[1739285092719,0.15614822,97333.0,97332.0,0.10250365]
[1739285092928,0.01236604,97338.0,97332.0,0.10250365]
[1739285093200,0.205463,97341.0,97332.0,0.10250365]
[1739285093201,0.00203899,97333.0,97332.0,0.10250365]
[1739285093424,0.154105,97336.0,97332.0,0.14900282]
[1739285093570,0.15411,97333.0,97332.0,0.14900282]
[1739285093779,0.15411,97333.0,97332.0,0.11750365]
[1739285093981,0.00203355,97333.0,97332.0,0.10250365]
[1739285094208,0.15411,97333.0,97332.0,0.12450365]
[1739285094387,0.15614374,97333.0,97332.0,0.11750365]
[1739285094884,0.15614374,97333.0,97332.0,0.12450365]
[1739285095449,0.15614374,97333.0,97332.0,0.10950365]
[1739285095670,0.15614374,97333.0,97332.0,0.12450365]
[1739285096146,0.15614374,97333.0,97332.0,0.022]
[1739285096270,0.23614374,97333.0,97332.0,0.022]
[1739285096996,0.23614374,97333.0,97304.0,0.00022344]
[1739285096997,0.154146,97310.0,97304.0,0.00022344]
[1739285097195,0.15613353,97310.0,97309.0,0.08270207]
[1739285097585,0.15613353,97310.0,97309.0,0.00013293]
[1739285098501,0.15613353,97310.0,97309.0,0.00613293]
[1739285098908,0.15613353,97310.0,97309.0,0.01713293]
[1739285100757,0.15613353,97310.0,97309.0,0.11963658]
[1739285101394,0.00198753,97310.0,97309.0,0.13162258]
[1739285101580,0.00198753,97310.0,97309.0,0.11963658]
[1739285101815,0.00098813,97312.0,97309.0,0.11963658]
[1739285102050,0.00098813,97312.0,97311.0,0.25664765]
[1739285102260,0.00098813,97312.0,97311.0,0.33584765]
[1739285102696,0.0001066,97351.0,97333.0,0.15411]
[1739285102697,0.154094,97343.0,97333.0,0.15411]
[1739285102911,0.154096,97342.0,97333.0,0.31312145]
[1739285103118,0.00098813,97348.0,97333.0,0.31312145]
[1739285103751,0.00098813,97348.0,97333.0,0.39232145]
[1739285103937,0.00098813,97348.0,97333.0,0.40032145]
[1739285104831,0.00098813,97348.0,97333.0,0.40532145]
[1739285105029,0.00098813,97348.0,97333.0,0.39232145]
[1739285105356,0.00098813,97348.0,97333.0,0.35481365]
[1739285105568,0.15409,97346.0,97333.0,0.35481365]
[1739285105773,0.00098813,97345.0,97333.0,0.35481365]
[1739285105972,0.00098813,97345.0,97333.0,0.55131365]
[1739285106087,0.00098813,97345.0,97333.0,0.56131365]
[1739285106696,0.00098813,97345.0,97333.0,0.54231365]
[1739285106984,0.00098813,97348.0,97333.0,0.56131365]
[1739285107192,0.00098813,97348.0,97333.0,0.65854182]
[1739285107401,0.00098813,97348.0,97333.0,0.64154182]
[1739285107602,0.00098813,97348.0,97333.0,0.65854182]
[1739285107810,0.00098813,97348.0,97333.0,0.40131365]
[1739285108459,9.453e-05,97348.0,97347.0,0.154087]
[1739285108664,9.453e-05,97348.0,97347.0,0.25659065]
[1739285109578,9.453e-05,97350.0,97348.0,0.154086]
[1739285109817,0.00064299,97349.0,97348.0,0.25658965]
[1739285110027,0.00064299,97349.0,97348.0,0.32333951]
[1739285110887,0.00064299,97349.0,97348.0,0.33733951]
[1739285111713,0.00064299,97349.0,97348.0,0.34433951]
[1739285112153,0.00064299,97349.0,97348.0,0.35578965]
[1739285112949,0.00064299,97349.0,97348.0,0.34878965]
[1739285113372,0.00055163,97349.0,97348.0,0.35578965]
[1739285113581,0.00055163,97349.0,97348.0,0.34178965]
[1739285113939,0.00055163,97349.0,97348.0,0.35678965]
[1739285114143,0.00055163,97349.0,97348.0,0.43557184]
[1739285114385,0.00055163,97349.0,97348.0,0.12450365]
[1739285114562,0.00055163,97349.0,97348.0,0.11750365]
[1739285115064,0.00055163,97349.0,97348.0,0.12450365]
[1739285115840,0.00261256,97349.0,97348.0,0.10950365]
[1739285116015,0.00055163,97349.0,97348.0,0.11750365]
[1739285116424,0.00261256,97349.0,97348.0,0.10950365]
[1739285116626,0.2263,97349.0,97348.0,0.10250365]
[1739285116825,0.380384,97349.0,97348.0,0.015]
[1739285117033,0.380384,97349.0,97348.0,0.022]
[1739285117205,0.2263,97349.0,97329.0,0.08256914]
[1739285117405,0.15411,97333.0,97329.0,0.08256914]
[1739285117884,0.15411,97333.0,97309.0,0.00022344]
[1739285118094,0.15411,97333.0,97311.0,0.08256914]
[1739285118307,0.30411,97333.0,97311.0,0.08256914]
[1739285118826,0.33928183,97333.0,97311.0,0.08256914]
[1739285119236,0.33928183,97333.0,97332.0,0.030299]
[1739285119675,0.33928183,97333.0,97332.0,0.023299]
[1739285120048,0.33428183,97333.0,97332.0,0.031299]
[1739285120470,0.33428183,97333.0,97332.0,0.038299]
[1739285120678,0.33428183,97333.0,97332.0,0.031299]
[1739285120911,0.33428183,97333.0,97332.0,0.028299]
[1739285121331,0.16128183,97333.0,97332.0,0.022299]
[1739285121502,0.16128183,97333.0,97332.0,0.025299]
[1739285122748,0.16128183,97333.0,97332.0,0.028299]
[1739285122958,0.14911,97333.0,97332.0,0.028299]
[1739285124039,0.00098793,97334.0,97332.0,0.13080265]
[1739285124247,0.154109,97334.0,97333.0,0.10250365]
[1739285124455,0.00098793,97336.0,97333.0,0.10250365]
[1739285124693,0.09285006,97337.0,97333.0,0.10250365]
[1739285124900,0.01227383,97347.0,97332.0,0.028299]
[1739285124901,0.15411,97333.0,97332.0,0.028299]
[1739285125127,0.30411,97333.0,97332.0,0.028299]
[1739285125536,0.38041,97333.0,97332.0,0.028299]
[1739285125802,0.38041,97333.0,97332.0,0.025299]
[1739285126040,0.42389758,97333.0,97332.0,0.025299]
[1739285126250,0.40341,97333.0,97332.0,0.024299]
[1739285126606,0.40341,97333.0,97332.0,0.022299]
[1739285126805,0.40341,97333.0,97332.0,0.023299]
[1739285126981,0.30511,97333.0,97332.0,0.023299]
[1739285127210,0.31840677,97333.0,97332.0,0.023299]
[1739285127424,0.31640677,97333.0,97332.0,0.022299]
[1739285127765,0.34140677,97333.0,97332.0,0.022299]
[1739285128165,0.31740677,97333.0,97332.0,0.022299]
[1739285128922,0.31640677,97333.0,97332.0,0.022299]
[1739285129144,0.29240677,97333.0,97332.0,0.022299]
[1739285129543,0.29140677,97333.0,97332.0,0.022299]
[1739285130019,0.29140677,97333.0,97309.0,0.08279258]
[1739285130020,0.154133,97319.0,97309.0,0.21523857]
[1739285130280,0.154129,97321.0,97310.0,0.10250365]
[1739285130484,0.15,97331.0,97310.0,0.25664865]
[1739285130610,0.154131,97320.0,97311.0,0.154144]
[1739285130848,0.154132,97319.0,97312.0,0.10250365]
[1739285131248,0.15420473,97319.0,97312.0,0.10250365]
[1739285131921,7.273e-05,97319.0,97312.0,0.10250365]
[1739285132496,0.00106069,97319.0,97312.0,0.10250365]
[1739285132696,0.00106069,97319.0,97317.0,0.154134]
[1739285132913,0.00106069,97319.0,97318.0,0.10250365]
[1739285133476,7.273e-05,97319.0,97318.0,0.10250365]
[1739285133981,7.273e-05,97319.0,97318.0,0.25663665]
[1739285134385,7.273e-05,97319.0,97318.0,0.26363665]
[1739285135041,7.273e-05,97319.0,97318.0,0.31213665]
[1739285135446,7.273e-05,97319.0,97318.0,0.32413665]
[1739285136243,7.273e-05,97319.0,97318.0,0.40428258]
[1739285137107,7.273e-05,97319.0,97318.0,0.32436009]
[1739285137907,7.273e-05,97319.0,97318.0,0.40186009]
[1739285138235,7.273e-05,97319.0,97318.0,0.55186009]
[1739285138441,7.273e-05,97319.0,97318.0,0.53986009]
[1739285138661,7.273e-05,97319.0,97318.0,0.53286009]
[1739285138846,7.273e-05,97319.0,97318.0,0.65036374]
[1739285139050,7.273e-05,97319.0,97318.0,0.65736374]
[1739285139301,7.273e-05,97319.0,97318.0,0.64236374]
[1739285139468,7.273e-05,97319.0,97318.0,0.65736374]
[1739285144167,7.273e-05,97319.0,97318.0,0.55486009]
[1739285149289,0.00017913,97319.0,97318.0,0.55486009]
[1739285150294,0.00017913,97319.0,97318.0,0.25072709]
[1739285150511,0.00017913,97319.0,97318.0,0.27886009]
[1739285153485,0.00098796,97341.0,97334.0,0.205477]
[1739285153486,0.00073834,97341.0,97334.0,0.205477]
[1739285153643,0.00073834,97341.0,97337.0,0.154103]
[1739285153822,0.00073834,97341.0,97338.0,0.10250365]
[1739285154434,0.00073834,97345.0,97341.0,0.154096]
[1739285154666,0.00073834,97345.0,97342.0,0.25659765]
[1739285154940,0.00073834,97345.0,97343.0,0.06675336]
[1739285155179,0.15482934,97345.0,97344.0,0.10250365]
[1739285155328,0.00073834,97345.0,97344.0,0.10250365]
[1739285155532,0.00073834,97346.0,97344.0,0.10250365]
[1739285156206,0.154091,97345.0,97344.0,0.10250365]
[1739285157474,0.154091,97345.0,97344.0,0.008]
[1739285159219,0.154091,97345.0,97344.0,0.013]
[1739285159956,0.00073834,97346.0,97344.0,0.11550365]
[1739285160170,0.154089,97346.0,97345.0,0.11405402]
[1739285160372,0.1541944,97347.0,97345.0,0.11405402]
[1739285160581,0.0001064,97347.0,97345.0,0.11405402]
[1739285160780,0.154089,97346.0,97345.0,0.11405402]
[1739285161035,0.154089,97346.0,97345.0,0.10250365]
[1739285161455,0.00084474,97347.0,97334.0,0.00044299]
[1739285161716,0.154098,97341.0,97335.0,0.25660965]
[1739285161919,0.154095,97342.0,97335.0,0.25660965]
[1739285162070,0.205452,97346.0,97335.0,0.25660965]
[1739285162280,0.196162,97346.0,97345.0,0.005]
[1739285162476,0.27364981,97346.0,97345.0,0.005]
[1739285163265,0.27375641,97346.0,97345.0,0.005]
[1739285163467,0.154105,97336.0,97335.0,0.10250365]
[1739285163731,0.154103,97338.0,97335.0,0.10250365]
[1739285163935,0.154101,97339.0,97335.0,0.11250365]
[1739285164132,0.154103,97338.0,97335.0,0.11250365]
[1739285164491,0.154103,97338.0,97335.0,0.10250365]
[1739285164695,0.205461,97342.0,97335.0,0.11050365]
[1739285164911,0.205467,97340.0,97335.0,0.11050365]
[1739285165168,0.154102,97338.0,97335.0,0.11450365]
[1739285165336,0.00098781,97343.0,97337.0,0.154103]
[1739285165520,0.00098781,97339.0,97338.0,0.10250365]
[1739285165724,0.15508781,97339.0,97338.0,0.10250365]
[1739285165927,0.00098781,97339.0,97338.0,0.10250365]
[1739285166353,0.00098781,97339.0,97338.0,0.25660565]
[1739285166551,0.00098781,97345.0,97338.0,0.10250365]
[1739285166761,0.154092,97344.0,97338.0,0.10250365]
[1739285167203,0.154098,97341.0,97338.0,0.10250365]
[1739285167895,0.154098,97341.0,97338.0,0.10850365]
[1739285168122,0.154098,97341.0,97338.0,0.11050365]
[1739285168545,0.1541,97339.0,97338.0,0.10850365]
[1739285168991,0.1541,97339.0,97338.0,0.11950365]
[1739285169595,0.1541,97339.0,97338.0,0.017]
[1739285169828,0.1541,97339.0,97338.0,0.011]
[1739285170007,0.154106,97335.0,97334.0,0.00044299]
[1739285170209,0.154106,97335.0,97334.0,0.10294664]
[1739285171153,0.154106,97335.0,97334.0,0.00944299]
[1739285171356,0.154106,97335.0,97334.0,0.01444299]
[1739285176370,0.154106,97335.0,97334.0,0.01466685]
[1739285178067,0.154106,97335.0,97334.0,0.1171705]
[1739285179350,0.00098781,97338.0,97334.0,0.1171705]
[1739285179578,0.205473,97337.0,97335.0,0.10250365]
[1739285179782,0.154105,97336.0,97335.0,0.10250365]
[1739285180273,0.154106,97335.0,97334.0,0.00566685]
[1739285180629,0.154106,97335.0,97334.0,0.00766685]
[1739285181071,0.154106,97335.0,97334.0,0.00066685]
[1739285181618,0.154106,97335.0,97334.0,0.01466685]
[1739285182021,0.154106,97335.0,97334.0,0.00966685]
[1739285182449,0.154106,97335.0,97334.0,0.01466685]
[1739285182981,0.154106,97335.0,97334.0,0.00566685]
[1739285183389,0.154106,97335.0,97334.0,0.01366685]
[1739285186163,0.09484361,97337.0,97334.0,0.01366685]
[1739285186401,0.154106,97335.0,97334.0,0.01366685]
[1739285187089,0.154106,97335.0,97334.0,0.00066685]
[1739285187518,0.154106,97335.0,97334.0,0.00566685]
[1739285187758,0.154106,97335.0,97334.0,0.00066685]
[1739285187759,0.304106,97335.0,97334.0,0.00066685]
[1739285187975,0.304106,97335.0,97334.0,0.00766685]
[1739285188185,0.327106,97335.0,97334.0,0.01266685]
[1739285188598,0.347558,97335.0,97334.0,0.01266685]
[1739285189838,0.347558,97335.0,97334.0,0.00566685]
[1739285190049,0.347558,97335.0,97334.0,0.00866685]
[1739285190463,0.347558,97335.0,97334.0,0.00166685]
[1739285194497,0.07618777,97336.0,97335.0,0.154106]
[1739285194498,0.00098777,97336.0,97335.0,0.154106]
[1739285194664,0.057878,97387.0,97335.0,0.154106]
[1739285194665,0.00098777,97337.0,97336.0,0.154105]
[1739285194903,0.00098777,97337.0,97336.0,0.33917779]
[1739285195048,0.00098777,97337.0,97336.0,0.61677779]
[1739285195271,0.00098777,97337.0,97336.0,0.53420865]
[1739285195495,0.02311003,97366.0,97365.0,0.154059]
[1739285195741,0.02311003,97366.0,97365.0,0.10250365]
[1739285196044,0.02311003,97366.0,97365.0,0.25656265]
[1739285196476,0.02311003,97366.0,97365.0,0.33913179]
[1739285196677,0.02311003,97366.0,97365.0,0.26809668]
[1739285196986,0.02324286,97366.0,97365.0,0.35575005]
[1739285197198,0.02324286,97366.0,97365.0,0.43515005]
[1739285197401,0.02324286,97366.0,97365.0,1.12045005]
[1739285197588,0.0001065,97387.0,97386.0,0.281626]
[1739285197797,0.0001065,97387.0,97386.0,0.38412965]
[1739285198004,0.0001065,97387.0,97386.0,0.46361732]
[1739285198205,0.0001065,97387.0,97386.0,1.00591732]
[1739285198391,7e-05,97402.0,97401.0,0.281602]
[1739285198564,0.00020278,97402.0,97401.0,0.38410565]
[1739285200136,0.00020278,97402.0,97401.0,0.39910565]
[1739285200383,0.00020278,97402.0,97401.0,0.48834163]
[1739285200588,0.0001065,97406.0,97401.0,0.48834163]
[1739285200589,0.01264037,97404.0,97403.0,0.303999]
[1739285200766,0.01264037,97404.0,97403.0,0.40650265]
[1739285201560,0.0001064,97417.0,97416.0,0.431578]
[1739285201749,0.0001064,97417.0,97416.0,1.16307035]
[1739285202113,0.0001064,97417.0,97416.0,0.23010365]
[1739285203306,0.1540834,97417.0,97416.0,0.10250365]
[1739285203505,0.0001064,97417.0,97416.0,0.007]
[1739285203666,0.1540834,97417.0,97416.0,0.007]
[1739285203866,0.0001064,97417.0,97416.0,0.10250365]
[1739285204108,0.0001064,97417.0,97416.0,0.10950365]
[1739285204346,0.1540834,97417.0,97416.0,0.12350365]
[1739285204508,0.1540834,97417.0,97416.0,0.11650365]
[1739285204888,0.1540834,97417.0,97416.0,0.12250365]
[1739285205263,0.0001064,97417.0,97416.0,0.12250365]
[1739285205675,0.0001064,97417.0,97416.0,0.10850365]
[1739285205877,0.0001064,97417.0,97416.0,0.006]
[1739285206054,0.0001064,97417.0,97416.0,0.016]
[1739285206286,0.0001064,97417.0,97416.0,0.01]
[1739285206546,0.0001064,97417.0,97404.0,0.23656614]
[1739285206765,0.153984,97413.0,97405.0,0.15914376]
[1739285206958,0.153986,97412.0,97405.0,0.10250365]
[1739285207297,0.0001064,97417.0,97405.0,0.10250365]
[1739285207502,0.153988,97411.0,97405.0,0.10250365]
[1739285207699,0.153987,97411.0,97405.0,0.10250365]
[1739285207946,0.0001064,97417.0,97405.0,0.10250365]
[1739285208177,0.153982,97414.0,97405.0,0.25649865]
[1739285208325,0.205305,97416.0,97406.0,0.153994]
[1739285208527,0.0001064,97417.0,97407.0,0.10250365]
[1739285208528,0.153991,97408.0,97407.0,0.10250365]
[1739285208727,0.00098722,97414.0,97404.0,0.016]
[1739285208728,0.153996,97405.0,97404.0,0.016]
[1739285209689,0.153996,97405.0,97404.0,0.006]
[1739285210010,0.00098722,97406.0,97383.0,0.0759]
[1739285210228,0.154027,97385.0,97383.0,0.00013278]
[1739285211581,0.154027,97385.0,97383.0,0.00213278]
[1739285211777,0.1541336,97385.0,97383.0,0.00213278]
[1739285212614,0.154029,97384.0,97383.0,0.00213278]
[1739285213004,0.15393766,97384.0,97383.0,0.00213278]
[1739285213416,0.15393766,97384.0,97383.0,0.00013278]
[1739285213789,0.15393766,97384.0,97383.0,0.00313278]
[1739285214458,0.15393766,97384.0,97383.0,0.00013278]
[1739285214684,0.15493766,97384.0,97383.0,0.00013278]
[1739285214812,0.15493766,97384.0,97383.0,0.00113278]
[1739285215022,0.15493766,97384.0,97383.0,0.00013278]
[1739285216014,0.15393766,97384.0,97383.0,0.00013278]
[1739285216221,0.15493766,97384.0,97383.0,0.00013278]
[1739285216865,0.15393766,97384.0,97383.0,0.00013278]
[1739285217057,0.15393766,97384.0,97383.0,0.00213278]
[1739285217268,0.15393766,97384.0,97383.0,0.00113278]
[1739285217779,0.15393766,97384.0,97383.0,0.00313278]
[1739285218630,0.33693766,97384.0,97383.0,0.00313278]
[1739285219194,0.33693766,97384.0,97383.0,0.00213278]
[1739285219391,0.43944131,97384.0,97383.0,0.00213278]
[1739285219692,0.44044131,97384.0,97383.0,0.00213278]
[1739285220033,0.01,97379.0,97351.0,0.04170191]
[1739285220169,0.15408,97352.0,97351.0,0.04170191]
[1739285220370,0.154095,97342.0,97341.0,0.08256914]
[1739285220585,0.154095,97342.0,97341.0,0.18507279]
[1739285220821,0.154095,97342.0,97341.0,0.10250365]
[1739285221438,0.154095,97342.0,97341.0,0.10263648]
[1739285222070,0.154095,97342.0,97341.0,0.00013283]
[1739285223352,0.154095,97342.0,97341.0,0.00613283]
[1739285223559,0.154095,97342.0,97341.0,0.00013283]
[1739285223770,0.154095,97342.0,97341.0,0.00035648]
[1739285224193,0.154095,97342.0,97334.0,3.4e-07]
[1739285224194,0.01,97337.0,97334.0,3.4e-07]
[1739285224407,0.01,97337.0,97309.0,0.00022344]
[1739285224408,0.154132,97319.0,97309.0,0.00022344]
[1739285224826,0.41663565,97319.0,97318.0,4.3e-07]
[1739285226091,0.41663565,97319.0,97318.0,0.00500043]
[1739285226092,0.44826199,97319.0,97318.0,0.00500043]
[1739285226431,0.45658199,97319.0,97318.0,0.00700043]
[1739285226630,0.45658199,97319.0,97318.0,0.00200043]
[1739285226864,0.45958199,97319.0,97318.0,4.3e-07]
[1739285227061,0.46158199,97319.0,97318.0,4.3e-07]
[1739285228047,0.47158199,97319.0,97318.0,4.3e-07]
[1739285229733,0.46858199,97319.0,97318.0,4.3e-07]
[1739285229937,0.154178,97290.0,97289.0,0.05401644]
[1739285230141,0.205545,97302.0,97289.0,0.05414937]
[1739285230348,0.13673429,97319.0,97304.0,0.154155]
[1739285230349,0.15414,97314.0,97304.0,0.154155]
[1739285230547,0.154137,97316.0,97306.0,0.154152]
[1739285230772,0.154139,97315.0,97307.0,0.25665365]
[1739285230927,0.018,97319.0,97318.0,0.154133]
[1739285231134,0.018,97319.0,97318.0,0.38633665]
[1739285231340,0.018,97319.0,97318.0,0.46852172]
[1739285231550,0.018,97319.0,97318.0,0.40933665]
[1739285231751,0.015,97319.0,97318.0,0.40933665]
[1739285232407,0.00098722,97343.0,97318.0,0.23220365]
[1739285232620,0.00098722,97346.0,97319.0,0.10250365]
[1739285232818,0.00098722,97346.0,97339.0,0.154099]
[1739285233067,0.00098722,97346.0,97334.0,0.205476]
[1739285233291,0.154092,97345.0,97337.0,0.154103]
[1739285233509,0.00098722,97346.0,97338.0,0.10250365]
[1739285233714,0.001,97343.0,97342.0,0.230395]
[1739285233939,0.00098759,97358.0,97349.0,0.154083]
[1739285234155,0.00098759,97358.0,97350.0,0.10250365]
[1739285234533,0.15505759,97358.0,97350.0,0.10250365]
[1739285234745,0.00098759,97358.0,97350.0,0.10250365]
[1739285234893,0.205427,97358.0,97350.0,0.10250365]